bitfinex/quotes_ETHUSD_20240817
["timestamp","ask_amount","ask_price","bid_price","bid_amount"]
[1723881293210,1.2869245,2602.8,2602.7,7.68428]
[1723881293418,0.0754463,2602.8,2602.7,9.96388]
[1723881296631,0.0754463,2602.8,2602.7,7.68428]
[1723881298090,1.2869245,2602.8,2602.7,7.68428]
[1723881299205,0.0754463,2602.8,2602.7,7.68428]
[1723881299607,1.2869245,2602.8,2602.7,7.68428]
[1723881299795,0.0754463,2602.8,2602.7,7.68428]
[1723881301960,1.2114782,2603.0,2602.9,3.84186]
[1723881311553,1.61464612,2603.0,2602.9,3.84186]
[1723881311767,4.61413661,2603.0,2602.9,3.84186]
[1723881311944,6.97333661,2603.0,2602.7,7.68415]
[1723881312141,1.21127155,2602.8,2602.6,3.84222]
[1723881312371,1.21127155,2602.8,2602.5,3.84245]
[1723881312372,1.21127155,2602.7,2602.5,3.84245]
[1723881312529,1.28671589,2602.7,2602.5,3.84245]
[1723881312943,1.28671589,2602.7,2602.4,3.84251]
[1723881313432,1.28671589,2602.7,2602.6,3.84231]
[1723881314446,0.07544434,2602.7,2602.6,3.84231]
[1723881314670,1.21127155,2602.8,2602.7,3.84216]
[1723881314835,1.28666347,2602.8,2602.7,3.84216]
[1723881315367,0.07539192,2602.8,2602.7,3.84216]
[1723881315938,1.28666347,2602.8,2602.7,3.84216]
[1723881316771,0.07539192,2602.8,2602.7,3.84216]
[1723881317158,1.28666347,2602.8,2602.7,3.84216]
[1723881319680,0.07539192,2602.8,2602.7,3.84216]
[1723881320379,0.07539192,2602.8,2602.7,7.68432]
[1723881320585,1.21127155,2603.0,2602.8,3.84194]
[1723881321186,1.21127155,2603.0,2602.9,3.84186]
[1723881322250,1.21127155,2603.0,2602.9,7.68372]
[1723881322453,20.75992287,2603.1,2603.0,3.84172]
[1723881326299,1.21127155,2603.1,2603.0,3.84172]
[1723881326667,1.28677091,2603.1,2603.0,3.84172]
[1723881327764,3.63087091,2603.1,2603.0,3.84172]
[1723881329186,1.28677091,2603.1,2603.0,3.84172]
[1723881331561,0.07549936,2603.1,2603.0,3.84172]
[1723881337003,1.28616586,2603.1,2603.0,3.84172]
[1723881340207,1.28616586,2603.1,2602.9,3.84186]
[1723881340414,1.28616586,2603.1,2602.9,7.68364]
[1723881341234,1.28616586,2603.1,2603.0,3.84172]
[1723881342346,1.28616586,2603.1,2602.9,7.68356]
[1723881343649,1.28616586,2603.1,2602.9,3.84178]
[1723881345252,1.2106665,2603.0,2602.9,3.84178]
[1723881345751,1.28614554,2603.0,2602.9,3.84178]
[1723881347226,1.28614554,2603.0,2602.7,3.84207]
[1723881347447,1.2106665,2602.9,2602.7,3.84207]
[1723881347977,0.07549119,2602.8,2602.7,3.84207]
[1723881348319,3.5191665,2603.0,2602.7,3.84207]
[1723881348528,0.07549385,2602.9,2602.7,3.84207]
[1723881348725,1.28616035,2602.9,2602.7,3.84207]
[1723881349926,0.07549385,2602.9,2602.7,3.84207]
[1723881350399,1.28616035,2602.9,2602.7,3.84207]
[1723881350529,0.07549385,2602.9,2602.7,3.84207]
[1723881351168,1.28616035,2602.9,2602.7,3.84207]
[1723881351380,0.07549385,2602.9,2602.7,3.84207]
[1723881352977,1.28616035,2602.9,2602.7,3.84207]
[1723881353534,1.28616035,2602.9,2602.7,7.68416]
[1723881353869,1.28616035,2602.9,2602.7,3.84207]
[1723881354371,1.28616035,2602.9,2602.7,7.68416]
[1723881355497,0.07549385,2602.9,2602.8,3.84201]
[1723881359577,1.28616035,2602.9,2602.8,3.84201]
[1723881361700,0.07549385,2602.9,2602.8,3.84201]
[1723881362002,1.28616035,2602.9,2602.8,3.84201]
[1723881362454,0.07549385,2602.9,2602.7,3.84207]
[1723881362656,1.28616035,2602.9,2602.7,7.68415]
[1723881363075,1.2106665,2602.8,2602.7,7.68415]
[1723881363273,1.2860979,2602.8,2602.7,7.68415]
[1723881367554,0.0754314,2602.8,2602.7,7.68415]
[1723881368168,1.2106665,2603.0,2602.8,3.84189]
[1723881368375,1.2106665,2602.9,2602.8,3.84189]
[1723881368572,1.2106665,2603.0,2602.8,3.84189]
[1723881369455,1.2106665,2602.9,2602.8,3.84189]
[1723881371976,1.28607213,2602.9,2602.8,3.84189]
[1723881377952,0.07540563,2602.9,2602.8,3.84189]
[1723881379187,1.28607213,2602.9,2602.8,3.84189]
[1723881379960,1.28607213,2602.9,2602.8,12.75274487]
[1723881379961,0.07540563,2602.9,2602.8,12.75274487]
[1723881380255,1.2106665,2603.5,2603.4,3.84113]
[1723881380488,1.2106665,2603.6,2603.5,3.84098]
[1723881380691,1.61502874,2603.7,2603.5,3.84098]
[1723881380885,3.52853985,2603.6,2603.5,3.84098]
[1723881381118,1.21031382,2603.6,2603.5,3.84098]
[1723881384624,1.21031382,2603.7,2603.5,3.84098]
[1723881384837,1.21031382,2603.6,2603.5,7.68196]
[1723881385191,1.21031382,2603.7,2603.5,7.68196]
[1723881386895,0.07040919,2603.6,2603.5,7.68196]
[1723881389439,0.07040919,2603.6,2603.5,3.84098]
[1723881393474,24.18936117,2603.8,2603.5,3.84098]
[1723881393613,24.18936117,2603.8,2603.6,3.84079]
[1723881397160,24.18936117,2603.8,2603.6,3.84075]
[1723881397359,22.97904735,2603.8,2603.6,3.84075]
[1723881397563,20.75896514,2603.8,2603.6,3.84075]
[1723881399291,19.54865132,2603.8,2603.6,3.84075]
[1723881399949,20.75896514,2603.8,2603.6,3.84075]
[1723881400351,20.75896514,2603.9,2603.7,3.84068]
[1723881401604,20.75896514,2603.9,2603.8,3.84054]
[1723881401751,19.54865132,2603.9,2603.8,3.84054]
[1723881401952,19.61929891,2603.9,2603.8,3.84054]
[1723881404396,0.07064759,2603.9,2603.8,3.84054]
[1723881404595,0.07064759,2603.9,2603.7,3.84065]
[1723881405391,0.07064759,2603.9,2603.7,7.68124]
[1723881405700,0.07064759,2603.9,2603.8,3.84054]
[1723881409168,0.07064759,2603.9,2603.7,3.84059]
[1723881410650,0.07064759,2603.9,2603.7,7.6812]
[1723881411600,0.07064759,2603.9,2603.5,2.4914]
[1723881411601,3.7738,2603.8,2603.5,3.84087]
[1723881411980,0.07062482,2603.7,2603.5,3.84087]
[1723881412356,1.332,2603.8,2603.5,3.84087]
[1723881412658,1.332,2603.8,2603.6,3.84079]
[1723881412858,0.07062483,2603.7,2603.6,3.84079]
[1723881413092,1.332,2603.8,2603.6,3.84079]
[1723881413417,0.07062501,2603.7,2603.6,3.84079]
[1723881413761,1.21031382,2603.9,2603.6,3.84079]
[1723881414313,0.07063732,2603.8,2603.6,3.84079]
[1723881417907,1.28095114,2603.8,2603.6,3.84079]
[1723881421082,1.21031382,2603.7,2603.6,3.84079]
[1723881421314,1.28095045,2603.7,2603.6,3.84079]
[1723881422338,0.07063663,2603.7,2603.6,3.84079]
[1723881422542,1.21031382,2603.7,2603.6,3.84079]
[1723881422834,1.28095063,2603.7,2603.6,3.84079]
[1723881423236,0.07063681,2603.7,2603.6,10.12172]
[1723881423545,1.21031382,2603.9,2603.8,3.84054]
[1723881424391,1.21031382,2603.9,2603.8,6.28064]
[1723881425198,1.21031382,2603.9,2603.8,10.12118]
[1723881425623,19.54865132,2604.1,2604.0,2.4401]
[1723881425998,19.54865132,2604.1,2604.0,10.12058]
[1723881429259,1.21031382,2604.3,2604.2,6.28005]
[1723881429417,1.21031382,2604.5,2604.3,3.8398]
[1723881430944,1.21031382,2604.6,2604.3,3.8398]
[1723881431120,1.21031382,2604.6,2604.4,3.83965]
[1723881431643,0.07091787,2604.5,2604.4,3.83965]
[1723881433972,0.07091787,2604.5,2604.3,3.8397]
[1723881436841,0.07091787,2604.5,2604.4,3.83965]
[1723881437287,1.21031382,2604.7,2604.4,3.83965]
[1723881437493,0.07090864,2604.5,2604.4,3.83965]
[1723881437777,1.21031382,2604.7,2604.4,3.83965]
[1723881437997,0.07090864,2604.5,2604.4,3.83965]
[1723881438143,1.21031382,2604.7,2604.4,3.83965]
[1723881438344,0.07090864,2604.5,2604.4,3.83965]
[1723881438584,1.21031382,2604.7,2604.4,3.83965]
[1723881438747,0.07090864,2604.5,2604.4,3.83965]
[1723881438949,1.21031382,2604.7,2604.4,3.83965]
[1723881439193,0.07092147,2604.5,2604.4,3.83965]
[1723881439663,1.21031382,2604.7,2604.4,3.83965]
[1723881439862,0.07092147,2604.5,2604.4,3.83965]
[1723881440063,1.21031382,2604.7,2604.4,3.83965]
[1723881440248,1.21031382,2604.7,2604.5,3.8395]
[1723881440795,2.54231382,2604.8,2604.5,3.8395]
[1723881440962,5.61426425,2604.8,2604.5,3.8395]
[1723881442046,2.54231382,2604.8,2604.5,3.8395]
[1723881446702,0.07091935,2604.7,2604.5,3.8395]
[1723881447209,2.54231382,2604.8,2604.5,7.679]
[1723881447412,0.07091823,2604.6,2604.5,3.8395]
[1723881447880,1.332,2604.8,2604.5,3.8395]
[1723881448081,0.07091831,2604.6,2604.5,3.8395]
[1723881448414,2.54231382,2604.8,2604.5,3.8395]
[1723881448573,0.07091831,2604.6,2604.5,3.8395]
[1723881448773,2.54231382,2604.8,2604.5,3.8395]
[1723881448976,0.07091849,2604.6,2604.5,3.8395]
[1723881449317,0.07091866,2604.6,2604.5,3.83942]
[1723881449471,2.54231382,2604.8,2604.5,3.83942]
[1723881449672,0.07091935,2604.7,2604.5,3.83942]
[1723881450015,2.54231382,2604.8,2604.5,3.83942]
[1723881450227,0.07091823,2604.6,2604.5,3.83942]
[1723881450372,2.54231382,2604.8,2604.5,3.83942]
[1723881450715,1.332,2604.8,2604.5,3.83942]
[1723881450870,0.07091892,2604.7,2604.5,3.83942]
[1723881451070,1.332,2604.8,2604.5,3.83942]
[1723881451294,0.07094162,2604.7,2604.5,3.83942]
[1723881451780,20.75896514,2604.9,2604.7,3.83921]
[1723881451983,19.54865132,2604.9,2604.7,3.83921]
[1723881452920,20.75896514,2604.9,2604.6,7.67863]
[1723881453083,23.12956453,2604.9,2604.6,3.83927]
[1723881453696,0.07096634,2604.8,2604.6,3.83927]
[1723881454598,0.07096634,2604.8,2604.6,7.67855]
[1723881454805,0.07096634,2604.8,2604.7,3.83921]
[1723881457728,0.07095737,2604.8,2604.7,3.83921]
[1723881458138,4.87191382,2605.0,2604.6,7.67852]
[1723881458423,0.07095737,2604.8,2604.6,7.67852]
[1723881458729,4.87191382,2605.0,2604.7,3.83919]
[1723881459725,2.54231382,2605.0,2604.7,6.15309]
[1723881460099,2.54231382,2605.0,2604.7,3.83919]
[1723881460648,2.54231382,2605.0,2604.6,3.83925]
[1723881460802,4.28896041,2605.0,2604.6,3.83925]
[1723881461399,0.07105766,2604.9,2604.6,3.83925]
[1723881462050,1.28137148,2604.9,2604.6,3.83925]
[1723881465222,3.83932,2604.7,2604.3,2.3139]
[1723881465449,1.21031382,2604.5,2603.9,6.15425]
[1723881465653,1.21031382,2604.5,2604.1,3.84008]
[1723881465820,1.28136392,2604.4,2604.1,3.84008]
[1723881467855,1.28136392,2604.4,2604.1,7.6801]
[1723881467856,0.0710501,2604.4,2604.1,7.6801]
[1723881468038,0.0710501,2604.4,2604.2,3.83989]
[1723881468559,1.28136392,2604.4,2604.2,3.83989]
[1723881469666,0.0710501,2604.4,2604.3,3.8398]
[1723881469952,0.0710501,2604.4,2604.3,7.6796]
[1723881470322,1.21031382,2604.5,2604.4,3.83965]
[1723881470721,1.61502874,2604.7,2604.4,3.83965]
[1723881470722,1.21031382,2604.6,2604.4,3.83965]
[1723881470869,1.21031382,2604.6,2604.3,3.8398]
[1723881470870,1.21031382,2604.6,2604.5,3.8395]
[1723881471055,1.61502874,2604.7,2604.5,3.8395]
[1723881471255,1.20923809,2604.6,2604.5,3.8395]
[1723881471568,1.61502874,2604.7,2604.5,3.8395]
[1723881471772,1.20945512,2604.6,2604.5,3.8395]
[1723881471979,1.20947165,2604.6,2604.5,3.8395]
[1723881472182,1.61502874,2604.6,2604.5,3.8395]
[1723881473634,1.61502874,2604.7,2604.5,3.8395]
[1723881473857,1.61502874,2604.6,2604.5,3.8395]
[1723881474077,1.61502874,2604.6,2604.3,7.67945]
[1723881474372,1.20966565,2604.4,2604.2,6.15384]
[1723881474533,1.20977912,2604.4,2604.2,9.99369]
[1723881475274,1.20977912,2604.4,2604.3,3.8398]
[1723881476878,1.28070886,2604.4,2604.3,3.8398]
[1723881477040,0.07092974,2604.4,2604.3,3.8398]
[1723881477780,1.28070886,2604.4,2604.3,3.8398]
[1723881478486,0.07092974,2604.4,2604.3,3.8398]
[1723881478789,0.07092974,2604.4,2604.3,9.9728]
[1723881479135,1.20977912,2604.6,2604.5,3.8395]
[1723881479567,1.61502874,2604.7,2604.6,3.83936]
[1723881479776,1.20959307,2604.7,2604.6,3.83936]
[1723881480844,1.20957387,2604.7,2604.6,3.83936]
[1723881482794,1.61502874,2604.8,2604.6,3.83936]
[1723881483293,1.20957614,2604.7,2604.6,6.24436]
[1723881484898,1.61502874,2604.8,2604.6,6.24436]
[1723881485100,1.61502874,2604.8,2604.6,3.83936]
[1723881485296,1.20955463,2604.7,2604.6,3.83936]
[1723881485495,1.61502874,2604.8,2604.6,3.83936]
[1723881485802,1.20954679,2604.7,2604.6,3.83936]
[1723881486498,1.61502874,2604.8,2604.6,3.83936]
[1723881487004,1.20953343,2604.7,2604.6,3.83936]
[1723881487592,1.61502874,2604.8,2604.6,3.83936]
[1723881488351,1.20950026,2604.7,2604.6,3.83936]
[1723881488566,1.61502874,2604.8,2604.6,3.83936]
[1723881488906,1.2095119,2604.7,2604.6,3.83936]
[1723881489770,1.61502874,2604.8,2604.6,3.83936]
[1723881489971,1.2094957,2604.7,2604.6,3.83936]
[1723881490171,1.61502874,2604.8,2604.6,3.83936]
[1723881490729,1.61502874,2604.7,2604.6,3.83936]
[1723881491002,1.61502874,2604.7,2604.5,3.8395]
[1723881491195,1.20952302,2604.6,2604.5,3.83941]
[1723881491517,1.20947384,2604.7,2604.6,3.83936]
[1723881491876,1.28049524,2604.7,2604.6,3.83936]
[1723881493672,0.0710214,2604.7,2604.6,3.83936]
[1723881493873,1.61502874,2604.8,2604.6,3.83936]
[1723881494086,0.0710214,2604.7,2604.6,3.83936]
[1723881494288,1.20944286,2604.7,2604.6,3.83936]
[1723881494718,1.28047345,2604.7,2604.6,3.83936]
[1723881500120,0.0710214,2604.7,2604.6,3.83936]
[1723881500304,1.28039889,2604.7,2604.6,3.83936]
[1723881500525,1.20937749,2604.7,2604.6,3.83936]
[1723881500700,0.06998366,2604.7,2604.6,3.83936]
[1723881500924,1.2093692,2604.7,2604.6,3.83936]
[1723881501140,1.27933679,2604.7,2604.6,3.83936]
[1723881503552,1.6850124,2604.7,2604.6,3.83936]
[1723881506031,1.6850124,2604.7,2604.5,3.83941]
[1723881506340,1.20944996,2604.6,2604.5,3.83941]
[1723881506736,1.27840336,2604.6,2604.5,3.83941]
[1723881510534,1.27840336,2604.6,2604.5,6.15421]
[1723881513657,1.24001136,2604.6,2604.5,6.15421]
[1723881515356,0.0689534,2604.6,2604.5,6.15421]
[1723881517459,1.68398214,2604.6,2604.5,6.15421]
[1723881527998,1.68398214,2604.6,2604.5,3.83941]
[1723881530153,1.68398214,2604.6,2604.5,7.67891]
[1723881530307,1.68398214,2604.6,2604.5,3.83941]
[1723881530743,1.68398214,2604.6,2604.5,7.67891]
[1723881531041,0.0689534,2604.6,2604.5,9.94321]
[1723881531403,1.2108057,2604.8,2604.7,7.67842]
[1723881533519,1.61502874,2605.0,2604.8,3.83906]
[1723881534048,1.21021172,2604.9,2604.8,3.83906]
[1723881534343,1.21021172,2604.9,2604.7,3.83921]
[1723881534344,1.61502874,2604.9,2604.7,3.83921]
[1723881534513,1.61502874,2604.8,2604.7,3.83913]
[1723881534943,4.46212376,2604.9,2604.7,3.83913]
[1723881535455,2.01742376,2604.8,2604.7,3.83913]
[1723881535864,1.61380132,2604.8,2604.7,3.83913]
[1723881536317,4.46212376,2604.9,2604.7,3.83913]
[1723881536517,1.61373616,2604.8,2604.7,3.83913]
[1723881536749,1.68239426,2604.8,2604.7,3.83913]
[1723881536967,0.0686581,2604.8,2604.7,3.83913]
[1723881537142,1.68239988,2604.8,2604.7,3.83913]
[1723881539551,1.27882226,2604.8,2604.7,3.83913]
[1723881539760,0.0686581,2604.8,2604.7,3.83913]
[1723881539988,1.68239988,2604.8,2604.7,3.83913]
[1723881540168,0.0686581,2604.8,2604.7,3.83913]
[1723881540766,1.68239988,2604.8,2604.7,3.83913]
[1723881541244,1.27875855,2604.8,2604.7,7.67834]
[1723881541444,0.0686581,2604.8,2604.7,7.67834]
[1723881544451,1.27875855,2604.8,2604.7,7.67834]
[1723881545178,0.0686581,2604.8,2604.7,7.67834]
[1723881549974,0.0686581,2604.8,2604.7,10.16674]
[1723881550278,1.21010045,2605.1,2605.0,7.67754]
[1723881550451,1.21010045,2605.2,2605.1,7.67724]
[1723881550636,1.61374178,2605.3,2605.1,3.83862]
[1723881550842,1.20910823,2605.2,2605.1,3.83862]
[1723881551639,1.27301488,2605.2,2605.1,3.83862]
[1723881551841,1.27302451,2605.2,2605.1,3.83862]
[1723881552038,0.06413915,2605.2,2605.1,3.83862]
[1723881552285,1.20878303,2605.2,2605.1,3.83862]
[1723881552469,1.27292018,2605.2,2605.1,3.83862]
[1723881552859,0.06413715,2605.2,2605.1,3.83862]
[1723881553073,1.61374178,2605.3,2605.1,3.83862]
[1723881553244,1.20868439,2605.2,2605.1,3.83862]
[1723881553578,1.27282094,2605.2,2605.1,3.83862]
[1723881554263,0.06413655,2605.2,2605.1,3.83862]
[1723881554463,1.20868439,2605.3,2605.1,3.83862]
[1723881554880,0.06413655,2605.2,2605.1,3.83862]
[1723881555083,1.20868439,2605.3,2605.1,3.83862]
[1723881555279,0.06413655,2605.2,2605.1,3.83862]
[1723881555581,1.20868439,2605.3,2605.1,3.83862]
[1723881555888,0.06413655,2605.2,2605.1,3.83862]
[1723881556081,1.20868439,2605.3,2605.1,3.83862]
[1723881556271,0.06413655,2605.2,2605.1,3.83862]
[1723881556474,1.20868439,2605.3,2605.1,3.83862]
[1723881556668,0.06413655,2605.2,2605.1,3.83862]
[1723881556885,1.20868439,2605.3,2605.1,3.83862]
[1723881557044,1.20868439,2605.3,2605.2,3.83847]
[1723881557247,1.20868439,2605.4,2605.2,3.83847]
[1723881557451,1.20868439,2605.4,2605.3,3.83832]
[1723881558076,4.05844178,2605.5,2605.3,3.83832]
[1723881558399,1.20807783,2605.4,2605.3,3.83832]
[1723881559293,2.54007783,2605.4,2605.1,3.83862]
[1723881559592,1.20796208,2605.2,2605.1,3.83862]
[1723881560155,1.20796208,2605.3,2605.1,3.83862]
[1723881560351,1.20796208,2605.3,2605.1,7.67716]
[1723881560616,1.20796208,2605.3,2605.2,3.83847]
[1723881560802,1.20796208,2605.4,2605.3,3.83832]
[1723881560978,1.61072828,2605.5,2605.3,3.83832]
[1723881561298,1.20785644,2605.4,2605.3,3.83832]
[1723881565524,3.90872828,2605.4,2605.2,3.83844]
[1723881565688,1.20776697,2605.3,2605.2,3.83844]
[1723881566511,2.298,2605.4,2605.2,3.83844]
[1723881566512,3.50576697,2605.4,2605.2,3.83844]
[1723881566684,0.06415071,2605.3,2605.2,3.83844]
[1723881566885,1.27191768,2605.3,2605.2,3.83844]
[1723881567202,0.06415071,2605.3,2605.2,3.83844]
[1723881567402,0.06415071,2605.3,2605.2,3.83847]
[1723881567619,1.27197903,2605.3,2605.2,3.83847]
[1723881569227,1.27197903,2605.3,2605.1,3.8385]
[1723881569595,1.20782832,2605.2,2605.1,3.8385]
[1723881569912,1.27196137,2605.2,2605.1,3.8385]
[1723881571136,3.97286133,2605.2,2604.9,7.67767]
[1723881571425,3.57029598,2605.2,2605.0,3.83874]
[1723881573189,1.20816293,2605.1,2605.0,3.83874]
[1723881573626,1.2722959,2605.1,2605.0,3.83874]
[1723881574136,0.06413297,2605.1,2605.0,3.83874]
[1723881578034,1.2722959,2605.1,2605.0,3.83874]
[1723881579350,0.06413297,2605.1,2605.0,3.83874]
[1723881580826,1.27312338,2605.1,2605.0,3.83874]
[1723881581437,0.06413297,2605.1,2605.0,3.83874]
[1723881582514,1.67486125,2605.1,2605.0,3.83874]
[1723881583584,2.37993297,2605.1,2604.9,3.83889]
[1723881583870,1.61261891,2605.0,2604.9,3.83889]
[1723881584011,1.6767114,2605.0,2604.9,3.83889]
[1723881585836,0.06409249,2605.0,2604.9,3.83889]
[1723881586227,1.67680455,2605.0,2604.9,3.83889]
[1723881591561,1.6767222,2605.0,2604.9,3.83889]
[1723881592044,1.6767222,2605.0,2604.7,3.83911]
[1723881592217,1.98187605,2604.9,2604.7,3.83911]
[1723881592417,0.06406295,2604.8,2604.7,3.83911]
[1723881592842,1.67669266,2604.8,2604.7,3.83911]
[1723881593249,0.06406295,2604.8,2604.7,3.83911]
[1723881593414,1.67669266,2604.8,2604.7,3.83911]
[1723881593617,0.06406295,2604.8,2604.7,3.83911]
[1723881594065,1.27351605,2604.8,2604.7,3.83911]
[1723881594241,0.06406295,2604.8,2604.7,3.83911]
[1723881595218,1.27333212,2604.8,2604.7,3.83911]
[1723881598163,0.06406295,2604.8,2604.7,3.83911]
[1723881602980,0.06406295,2604.8,2604.7,7.67832]
[1723881603580,0.06406295,2604.8,2604.7,9.95882]
[1723881603791,0.06406295,2604.8,2604.7,7.67832]
[1723881604689,0.06406295,2604.8,2604.7,9.95882]
[1723881606400,0.06406295,2604.8,2604.7,13.79803]
[1723881606692,0.06406295,2604.8,2604.7,16.79803]
[1723881614857,0.06406295,2604.8,2604.7,7.67832]
[1723881617891,1.20897745,2605.0,2604.9,3.83891]
[1723881620264,3.59807745,2605.1,2604.9,3.83891]
[1723881621799,1.20897745,2605.0,2604.9,3.83891]
[1723881621997,3.59807745,2605.1,2604.9,3.83891]
[1723881622180,1.20897745,2605.0,2604.9,3.83891]
[1723881624015,2.3891,2605.1,2604.9,3.83891]
[1723881624016,3.59807745,2605.1,2604.9,3.83891]
[1723881624214,1.20897745,2605.0,2604.9,3.83891]
[1723881625575,3.59807745,2605.1,2604.9,3.83891]
[1723881625769,1.20897745,2605.0,2604.9,3.83891]
[1723881626272,3.59847157,2605.1,2605.0,3.83877]
[1723881626791,2.3891,2605.1,2605.0,3.83877]
[1723881626991,3.59847144,2605.1,2605.0,3.83877]
[1723881627194,2.3891,2605.1,2605.0,3.83877]
[1723881627772,2.3891,2605.1,2604.8,3.83894]
[1723881628123,1.20938959,2605.0,2604.8,3.83894]
[1723881628324,1.20938959,2605.0,2604.9,3.83891]
[1723881628476,3.59848959,2605.1,2604.9,3.83891]
[1723881628824,1.20938959,2605.0,2604.9,3.83891]
[1723881629276,3.59848959,2605.1,2604.9,3.83891]
[1723881629612,1.20938959,2605.1,2604.9,3.83891]
[1723881630416,0.06705898,2605.0,2604.9,3.83891]
[1723881634138,0.06705898,2605.0,2604.9,7.67782]
[1723881634688,1.20938959,2605.3,2605.1,3.83862]
[1723881634935,0.06706289,2605.2,2605.1,7.67724]
[1723881635238,0.06706289,2605.2,2605.1,3.83862]
[1723881635393,1.20938959,2605.4,2605.2,3.8384]
[1723881636508,1.20938959,2605.4,2605.3,3.83832]
[1723881636887,1.20938959,2605.5,2605.4,3.83818]
[1723881637126,1.20887964,2605.5,2605.4,3.83818]
[1723881637795,1.20887964,2605.6,2605.5,3.83803]
[1723881637998,1.61196994,2605.8,2605.5,3.83803]
[1723881637999,1.20887964,2605.7,2605.5,3.83803]
[1723881638926,1.20887964,2605.7,2605.4,3.83818]
[1723881639227,1.20887964,2605.6,2605.4,3.83809]
[1723881639414,4.12682714,2605.7,2605.4,7.67616]
[1723881639605,4.12682714,2605.7,2605.4,7.67617]
[1723881639803,1.20887964,2605.6,2605.4,7.67617]
[1723881640411,4.12682714,2605.7,2605.5,3.83802]
[1723881640608,3.50997964,2605.7,2605.5,3.83802]
[1723881641321,1.20887964,2605.7,2605.5,3.83802]
[1723881642036,1.20887964,2605.7,2605.6,3.83788]
[1723881642402,1.20789136,2605.7,2605.6,3.83788]
[1723881642943,1.332,2605.8,2605.6,3.83788]
[1723881643122,1.2078926,2605.7,2605.6,3.83788]
[1723881643301,2.5398926,2605.8,2605.6,3.83788]
[1723881643913,1.2078926,2605.7,2605.6,3.83788]
[1723881644339,2.5398926,2605.8,2605.6,3.83788]
[1723881645319,0.06386916,2605.7,2605.6,3.83788]
[1723881645507,2.5398926,2605.8,2605.6,3.83788]
[1723881645712,0.06386916,2605.7,2605.6,3.83788]
[1723881645936,2.5398926,2605.8,2605.6,3.83788]
[1723881646153,0.06386916,2605.7,2605.6,3.83788]
[1723881646319,0.06386916,2605.7,2605.4,3.83806]
[1723881646671,2.5398926,2605.8,2605.4,3.83806]
[1723881646841,0.06386847,2605.6,2605.4,3.83806]
[1723881647145,2.5398926,2605.8,2605.5,3.83794]
[1723881647648,2.5398926,2605.8,2605.4,3.83806]
[1723881647943,2.5398926,2605.6,2605.4,3.83806]
[1723881648145,4.8409926,2605.6,2605.4,3.83806]
[1723881648447,1.20770708,2605.5,2605.2,3.83838]
[1723881648633,1.20770708,2605.5,2605.2,7.67677]
[1723881648824,1.20770708,2605.4,2605.2,3.83838]
[1723881649356,6.39373344,2605.6,2605.2,3.83838]
[1723881649357,1.20770708,2605.5,2605.2,3.83838]
[1723881649542,1.20770708,2605.4,2605.2,3.83838]
[1723881649846,1.20770708,2605.5,2605.2,3.83838]
[1723881650617,1.332,2605.4,2604.9,3.0]
[1723881650824,2.53970708,2605.2,2604.9,6.83887]
[1723881651143,1.20770708,2605.3,2604.9,6.83887]
[1723881651348,1.20770708,2605.2,2604.9,6.83887]
[1723881652109,1.20770708,2605.2,2605.0,3.8387]
[1723881652921,1.20770708,2605.3,2605.0,3.8387]
[1723881654954,1.20770708,2605.3,2605.1,3.8386]
[1723881659056,1.20770708,2605.4,2605.2,3.83847]
[1723881659216,1.20770708,2605.5,2605.3,3.83819]
[1723881660463,0.06164928,2605.4,2605.3,3.83819]
[1723881663960,0.06164928,2605.4,2605.3,7.67651]
[1723881664121,0.06164928,2605.4,2605.3,9.97521]
[1723881666423,1.20770708,2605.6,2605.4,3.83807]
[1723881666838,1.20770708,2605.6,2605.5,3.83803]
[1723881667540,2.53970708,2605.7,2605.5,3.83803]
[1723881668067,1.20770708,2605.6,2605.5,3.83803]
[1723881669041,2.53970708,2605.7,2605.5,3.83803]
[1723881670179,1.20770708,2605.6,2605.5,3.83803]
[1723881671846,1.20770708,2605.6,2605.4,3.83818]
[1723881674766,4.00257478,2605.6,2605.1,7.67709]
[1723881675082,1.20819849,2605.5,2605.1,3.83853]
[1723881675377,0.06176219,2605.4,2605.1,3.83853]
[1723881675967,0.06176219,2605.4,2605.2,3.83844]
[1723881678379,1.26996068,2605.4,2605.2,3.83844]
[1723881678543,1.26996068,2605.4,2605.1,3.83853]
[1723881679960,1.26996068,2605.4,2605.2,3.83847]
[1723881680841,4.91989849,2605.3,2604.9,6.83881]
[1723881681040,1.20884034,2605.1,2604.9,3.83881]
[1723881681380,0.06173821,2605.0,2604.9,3.83881]
[1723881682544,1.20884034,2605.2,2604.9,3.83881]
[1723881682774,0.0617389,2605.1,2604.9,3.83881]
[1723881682973,0.0617389,2605.1,2605.0,3.83877]
[1723881683757,1.27057924,2605.1,2604.9,3.83889]
[1723881684393,2.3797,2605.0,2604.8,3.83896]
[1723881684561,3.65024008,2605.0,2604.9,3.83891]
[1723881684894,3.65024008,2605.0,2604.6,3.0]
[1723881684895,0.06169974,2605.0,2604.7,3.8392]
[1723881685098,0.06169974,2605.0,2604.6,6.83926]
[1723881685099,2.3797,2604.9,2604.8,3.83906]
[1723881685245,1.27054008,2605.0,2604.8,7.67812]
[1723881685596,0.06165676,2604.9,2604.8,7.67812]
[1723881686122,1.20884034,2605.2,2605.0,3.83877]
[1723881687062,1.20884034,2605.2,2605.1,3.83862]
[1723881687787,4.92054034,2605.3,2605.1,3.83862]
[1723881689065,3.58854034,2605.3,2605.1,3.83862]
[1723881689849,4.92054034,2605.3,2605.1,3.83862]
[1723881690055,1.20884034,2605.2,2605.1,3.83862]
[1723881690569,1.270505,2605.2,2605.1,3.83862]
[1723881690943,1.270505,2605.2,2605.0,3.83877]
[1723881691148,1.270505,2605.2,2605.0,7.67744]
[1723881691899,1.270505,2605.2,2605.0,3.83867]
[1723881692408,1.270505,2605.2,2605.0,7.67736]
[1723881692551,1.270505,2605.2,2605.1,3.83862]
[1723881693183,1.270505,2605.2,2605.0,3.83867]
[1723881693499,1.20884034,2605.1,2605.0,3.83867]
[1723881693798,1.27048625,2605.1,2605.0,3.83867]
[1723881695401,1.27048625,2605.1,2604.8,7.67797]
[1723881695972,1.20884034,2605.0,2604.8,7.67797]
[1723881696236,0.06164453,2604.9,2604.8,7.67797]